Workbook

Sheet 汇总
A1: 泸州市中医医院城南院区党建阵地和职工之家建设项目-预算汇总表
A2: 序号 | B2: 单项工程名称 | C2: 单位 | D2: 金额（元） | E2: 金额（万元） | F2: 备注
A3: 1 | B3: ='2F职工健身房'!A1 -> 2F装饰部分--职工健身房 | C3: 项
A4: 2 | B4: ='2F职工之家'!A1 -> 2F装饰部分--职工之家 | C4: 项
A5: 3 | B5: =职工之家文化!A1 -> 文化制作--室内工程 | C5: 项
B6: 合 计（含税）

Sheet 2F职工健身房
A1: 2F装饰部分--职工健身房
A2: 序号 | B2: 项目名称 | C2: 工程量 | D2: 计量 单位 | E2: 综合 单价 | F2: 合计 | G2: 项目特征描述
B3: 硬装部分
A4: 1 | B4: 地胶拆除 | C4: 111.36 | D4: m2 | G4: 人工费 | AE4: 15 | AF4: 1.5
A5: 2 | B5: 新做PVC地胶 | C5: 111.36 | D5: m2 | G5: 水泥浆自流平+4mmPVC地胶+人工费 | AE5: =30+65 -> 95
A6: 3 | B6: 银镜 | C6: =(6.7)*2.8 -> 18.76 | D6: m2 | G6: 5mm银镜+20*20不锈钢边框+人工费 | AE6: 165
A7: 4 | B7: 铁艺隔断 | C7: =4.6*2.8 -> 12.88 | D7: m2 | G7: 镀锌网丝径6mm+40*60*1.5镀锌矩管边框+人工费 | AE7: 580
A8: 5 | B8: 墙面开槽 | C8: =3*2.5+5.2+3.5 -> 16.2 | D8: 米 | G8: 人工费 | AE8: 26
A9: 6 | B9: 线路布置 插座线 | C9: =55.8+3*2.5 -> 63.3 | D9: 米 | G9: BYJ-3x4-JDG25管线材料费+人工费 | AE9: =2.5*3+16 -> 23.5
A10: 7 | B10: 插座安装 | C10: 9 | D10: 个 | G10: 暗装底盒预埋+五孔插座+人工费 | AE10: =18+15 -> 33
A11: 8 | B11: 墙面修补 | C11: 1 | D11: 项 | G11: 线槽抹灰+腻子+乳胶漆+人工费 | AE11: 600
B12: 小计 | F12: =SUM(F4:F11) -> 0.00
B13: 定制家具采购清单
A14: 1 | B14: 花箱 1200*400*1000 | C14: 3 | D14: 个 | G14: 材料：金属花箱（不含绿植） | AE14: 850
A15: 2 | B15: 休息沙发 1450*830*790 | C15: 3 | D15: 套 | G15: 材料：布艺沙发 | AE15: 1400
A16: 3 | B16: 换鞋柜 1100*435*450 | C16: 1 | D16: 个 | G16: 材料：皮革/布艺+木质箱体 | AE16: 850
A17: 4 | B17: 衣柜 | C17: =(3.65+2.325)*3 -> 17.925 | D17: m2 | G17: 材料：免漆饰面板柜体+合页拉手 | AE17: =430+120 -> 550
B18: 小计 | F18: =SUM(F14:F17) -> 0.00
B19: 设备采购清单 | H19: 生产厂家及型号
A20: 1 | B20: 椭圆机 | C20: 4 | D20: 台 | G20: 产品尺寸：1715*665*1730mm 飞轮装置：13kg 阻力系统：电动磁控阻力系统(自发电) 阻力调节：32挡磁控调节 步距：52cm 滑轨配置：四滑轮四轨道 净重：75.8kg(标准款) 整机承重：150kg | AE20: 2999
A21: 2 | B21: 跑步机 | C21: 4 | D21: 台 | G21: 跑带宽度：52cm 调速范围：1-20km/h 坡度调节：18挡电动坡度 电机功率：峰值马力5.0HP持续马力2.0HP 承重上限：150kg 净重：94kg 展开尺寸：1720mm*864mm*1527mm | AE21: 4899
A22: 3 | B22: 成套亚铃架 | C22: 1 | D22: 套 | G22: 105KG哑铃+A型6对哑铃架 | AE22: 2000
A23: 4 | B23: 唱歌机迷你KTV房 | C23: 1 | D23: 套 | G23: 尺寸:1.5x1.5x2.5m 系统:安卓，自研发系统，体验好 材质:加厚五金+钢化玻璃+隔音板 功率:220V/50HZ，功率800W 双屏:21.5寸触摸屏+32寸显示屏 效果器:DSP音效，人声效果器方案 耳机:2个，舒适降噪，还原真实人声 话筒:2个，专业录音咪心，高拾音效能 通风:空调，静音无需排水 凳子:2个，高脚美式吧椅 窗帘:窗帘1套,隔音的同时保持私密 歌曲:4T硬盘，本地5万+80万歌曲 功能:K歌录音、微信分享手机点歌、U盘加歌
A24: 5 | B24: 拳击机 | C24: 2 | D24: 台 | G24: 外观材质：PC+ABS合金面板 环保PU皮包边（柔软耐磨有质感） 面板材质：PC+ABS塑料合金 电源：插电+可用充电宝供电 内部填充：多层EVA离弹减震材质
B25: 小计 | F25: =SUM(F20:F24) -> 0.00
B26: 成品家具、装饰品清单
A27: 1 | B27: 瑜伽垫 | C27: 4 | D27: 块 | G27: 厚度：7mm | AE27: 79
A28: 2 | B28: 瑜伽球 | C28: 2 | D28: 个 | G28: 直径：65cm | AE28: 78
B29: 小计 | F29: =SUM(F27:F28) -> 0.00

Sheet 2F职工之家
A1: 2F装饰部分--职工之家
A2: 序号 | B2: 项目名称 | C2: 工程量 | D2: 计量 单位 | E2: 综合 单价 | F2: 合计 | G2: 项目特征描述
B3: 硬装部分
A4: 1 | B4: 石膏板双面造型 | C4: 3.62 | D4: m2 | G4: 轻钢龙骨+12mm阻燃板+石膏板造型墙面+满刮腻子+乳胶漆 | AC4: 520 | AD4: 1.5
A5: 2 | B5: 木饰面收边条 | C5: =3.62+2 -> 5.62 | D5: 米 | G5: 3mm饰面板+喷漆 | AC5: 160
A6: 3 | B6: 金属隔断 | C6: =0.767*3*2 -> 5 | D6: m2 | G6: 80x40x2、25x25x1.5镀锌矩管、面喷金属氟碳漆 | AC6: 680
A7: 4 | B7: 墙面开槽 | C7: 2.2 | D7: 米 | G7: 人工费 | AC7: 26
A8: 5 | B8: 线路布置 照明线 | C8: 6 | D8: 米 | G8: BYJ-3x2.5-JDG25管线材料费+人工费 | AC8: =1.9*3+16 -> 21.7
A9: 6 | B9: 禅意山水吊灯 长：2500 | C9: 1 | D9: 个 | G9: 成品吊灯+人工费 | AC9: 3469
A10: 7 | B10: 墙面修补 | C10: 1 | D10: 项 | G10: 线槽抹灰+腻子+乳胶漆+人工费 | AC10: 200
B11: 小计 | F11: =SUM(F4:F10) -> 0.00
B12: 定制家具采购清单
A13: 1 | B13: 花池柜 1500*300*1000 | C13: 3 | D13: 套 | G13: 材料：18mm生态免漆板线 | AC13: =1.5*1.2*650 -> 1170
A14: 2 | B14: 长桌 5850*300 | C14: 1 | D14: 张 | G14: 材料：实木桌 | AC14: =5.85*600 -> 3510
A15: 3 | B15: 储藏柜 厚度：350 | C15: =3.9*3 -> 11.7 | D15: m2 | G15: 材料：免漆饰面板柜体+合页拉手+发光灯带 | AC15: =550+100 -> 650
A16: 4 | B16: 定制吊柜 2400*450 | C16: 1 | D16: 个 | G16: 材料：免漆饰面板柜体 | AC16: =0.5*2.4*850+100 -> 1120
A17: 5 | B17: 花池 3200*400 | C17: 1 | D17: 个 | G17: 材料：金属+油漆 | AC17: =3.2*550 -> 1760
B18: 小计 | F18: =SUM(F13:F17) -> 0.00
B19: 成品家具、装饰品清单
A20: 1 | B20: 吧台椅 480*480*750 | C20: 5 | D20: 条 | G20: 材料：金属+PU | AC20: 229
A21: 2 | B21: 沙发 1500*830*790 | C21: 4 | D21: 套 | G21: 材料：布艺+实木 | AC21: 2080
A22: 3 | B22: 茶几 1200*600 | C22: 2 | D22: 张 | G22: 材料：实木+金属 | AC22: 1450
A23: 4 | B23: 休闲桌 直径：800 | C23: 2 | D23: 张 | G23: 材料：饰面板+实木脚 | AC23: 680
A24: 5 | B24: 休闲椅 470*470*800 | C24: 8 | D24: 条 | G24: 材料：金属+布艺 | AC24: 360
A25: 6 | B25: 会议桌 3000*1200 | C25: 1 | D25: 张 | G25: 材料：实木桌 | AC25: =3*1100 -> 3300
A26: 7 | B26: 会议椅 470*470*800 | C26: 8 | D26: 张 | G26: 材料：金属+PU皮革 | AC26: 650
A27: 8 | B27: 窗帘 | C27: =1.5*2.8*3 -> 12.6 | D27: m2 | AC27: 65
B28: 小计 | F28: =SUM(F20:F27) -> 0.00
G30: 备注

Sheet 职工之家文化
A1: 文化制作--室内工程
A2: 序号 | B2: 项目名称 | C2: 规格 | D2: 工程 数量 | E2: 计量 单位 | F2: 单价 | G2: 合价 | H2: 项目特征 | I2: 效果图
A3: 健身房形象墙
A4: 1 | B4: 主题字 | C4: 30*30 | D4: 5 | E4: 个 | H4: 材料：10mm亚克力 工艺：激光数控艺术雕刻、手工打磨、补灰 漆面：满喷底漆（二遍）+专业漆房烤漆精喷（三遍）
A5: 2 | B5: 英文 | C5: 30*60 | D5: 1 | E5: 个 | H5: 材料：10mm亚克力 工艺：激光数控艺术雕刻、手工打磨、补灰 漆面：满喷底漆（二遍）+专业漆房烤漆精喷（三遍）
A6: 3 | B6: 小字块 | C6: 100*30 | D6: 1 | E6: 组 | H6: 材料：10mmUVS艺术雕刻板 工艺：激光数控艺术雕刻、手工打磨、补灰、UV 漆面：满喷底漆（二遍）+专业漆房烤漆精喷（三遍）
A7: 4 | B7: 底板 | C7: 193*100 | D7: 1.93 | E7: m2 | H7: 材料：10mmUVS艺术雕刻板 工艺：激光数控艺术雕刻、手工打磨、补灰、UV 漆面：满喷底漆（二遍）+专业漆房烤漆精喷（三遍）
A8: 5 | B8: 线条 | C8: 57*1.5 | D8: 2 | E8: 组 | H8: 材料：10mmUVS艺术雕刻板 工艺：激光数控艺术雕刻、手工打磨、补灰 漆面：满喷底漆（二遍）+专业漆房烤漆精喷（三遍）
A9: 6 | B9: 金属花箱 | D9: 12 | E9: 组 | H9: 材料:1.5mm镀锌板 工艺:激光数控艺术雕刻、手工打磨、补灰 漆面:满喷底漆 (二遍)+专业漆房烤漆精喷 (三遍)
A10: 7 | B10: 仿真绿植1 | D10: 12 | E10: 组 | H10: 仿真绿植+草坪+泡沫
A11: 8 | B11: 仿真绿植2 | D11: 3 | E11: 组 | H11: 仿真绿植+草坪+泡沫
A12: 9 | B12: 小计 | G12: =SUM(G4:G11) -> 0
A13: 运动氛围语
A14: 1 | B14: 主题字 | C14: 15*15 | D14: 6 | E14: 个 | H14: 材料：20mm亚克力 工艺：激光数控艺术雕刻、手工打磨、补灰 漆面：满喷底漆（二遍）+专业漆房烤漆精喷（三遍）
A15: 2 | B15: 小字 | C15: 10*10 | D15: 22 | E15: 个 | H15: 材料：10mm亚克力 工艺：激光数控艺术雕刻、手工打磨、补灰 漆面：满喷底漆（二遍）+专业漆房烤漆精喷（三遍）
A16: 3 | B16: 人物 | C16: 71*48 61*61 60*53 | D16: 3 | E16: 组 | H16: 材料：20mmUVS艺术雕刻板 工艺：激光数控艺术雕刻、手工打磨、补灰 漆面：满喷底漆（二遍）+专业漆房烤漆精喷（三遍）
A17: 4 | B17: 金色底板 | C17: 200*25 220*24 | D17: =2*0.25+2.2*0.24 -> 1.03 | E17: m2 | H17: 材料：10mmUVS艺术雕刻板 工艺：激光数控艺术雕刻、手工打磨、补灰、UV 漆面：满喷底漆（二遍）+专业漆房烤漆精喷（三遍）
A18: 5 | B18: 线条 | C18: 84*1.5 | D18: 2 | E18: 组 | H18: 材料：10mmUVS艺术雕刻板 工艺：激光数控艺术雕刻、手工打磨、补灰 漆面：满喷底漆（二遍）+专业漆房烤漆精喷（三遍）
A19: 6 | B19: 小计 | G19: =SUM(G14:G18) -> 0
A20: 职工之家形象墙
A21: 1 | B21: 主题字 | C21: 25*25 | D21: 4 | E21: 个 | H21: 材料：20mm亚克力 工艺：激光数控艺术雕刻、手工打磨、补灰 漆面：满喷底漆（二遍）+专业漆房烤漆精喷（三遍） | I21: =_xlfn.DISPIMG("ID_536284A374C64AB89BC93E686C194940",1) -> =DISPIMG("ID_536284A374C64AB89BC93E686C194940",1)
A22: 2 | B22: 小字 | C22: 10*10 | D22: 7 | E22: 个 | H22: 材料：10mm亚克力 工艺：激光数控艺术雕刻、手工打磨、补灰 漆面：满喷底漆（二遍）+专业漆房烤漆精喷（三遍）
A23: 3 | B23: logo | C23: 25*25 | D23: 1 | E23: 个 | H23: 材料：20mm亚克力 工艺：激光数控艺术雕刻、手工打磨、补灰 漆面：满喷底漆（二遍）+专业漆房烤漆精喷（三遍）
A24: 4 | B24: 绿植装饰 | D24: 1 | E24: 组 | H24: 仿真竹子+仿真草坪+海峡石+雪浪石
A25: 5 | B25: 小计 | G25: =SUM(G21:G24) -> 0
A26: 医院职工书画摄影作品墙
A27: 1 | B27: 主题字 | C27: 33*33 | D27: 5 | E27: 个 | H27: 材料：20mm亚克力 工艺：激光数控艺术雕刻、手工打磨、补灰 漆面：满喷底漆（二遍）+专业漆房烤漆精喷（三遍） | I27: =_xlfn.DISPIMG("ID_7ACE3FEA82EA4B5291838EF895CAE228",1) -> =DISPIMG("ID_7ACE3FEA82EA4B5291838EF895CAE228",1)
A28: 2 | B28: 小字块 | C28: 15*15 | D28: 5 | E28: 个 | H28: 材料：10mm亚克力 工艺：激光数控艺术雕刻、手工打磨、补灰 漆面：满喷底漆（二遍）+专业漆房烤漆精喷（三遍）
A29: 3 | B29: 拼音1 | C29: 5*5 | D29: 6 | E29: 个 | H29: 材料：5mm亚克力 工艺：激光数控艺术雕刻、手工打磨、补灰 漆面：满喷底漆（二遍）+专业漆房烤漆精喷（三遍）
A30: 4 | B30: 拼音2 | C30: 9*9 | D30: 4 | E30: 个 | H30: 材料：10mm亚克力 工艺：激光数控艺术雕刻、手工打磨、补灰 漆面：满喷底漆（二遍）+专业漆房烤漆精喷（三遍）
A31: 5 | B31: 线条 | C31: 40*2 | D31: 2 | E31: 组 | H31: 材料：10mmUVS艺术雕刻板 工艺：激光数控艺术雕刻、手工打磨、补灰 漆面：满喷底漆（二遍）+专业漆房烤漆精喷（三遍）
A32: 6 | B32: 金属相框1 | C32: 53*61 82*42 65*99 65*91 | D32: 4 | E32: 组 | H32: 订制金属相框
A33: 7 | B33: 金属相框2 | C33: 105*87 117*65 130*63 | D33: 3 | E33: 组 | H33: 订制金属相框
A34: 8 | B34: 仿真绿植装饰 | C34: 40*42 | D34: 2 | E34: 组 | H34: 订制仿真绿植装饰
A35: 9 | B35: 小计 | G35: =SUM(G27:G34) -> 0
A36: 好书推荐牌
A37: 1 | B37: 金属造型 | C37: 45*76 | D37: 3 | E37: 组 | H37: 材料：10mmUVS艺术雕刻板+1.5mm镀锌板 工艺：激光数控艺术雕刻、手工打磨、补灰、UV 漆面：满喷底漆（二遍）+专业漆房烤漆精喷（三遍）
A38: 2 | B38: 亚克力盒子 | C38: 21*29.7 | D38: 3 | E38: 个 | H38: 材料：3mm亚克力盒子+相纸
A39: 3 | B39: 小计 | G39: =SUM(G37:G38) -> 0
A40: 兴趣爱好小组及风采
A41: 1 | B41: 主题字 | C41: 12*12 | D41: 7 | E41: 个 | H41: 材料：20mm亚克力 工艺：激光数控艺术雕刻、手工打磨、补灰 漆面：满喷底漆（二遍）+专业漆房烤漆精喷（三遍） | I41: =_xlfn.DISPIMG("ID_CE4EEFB2A38D48FC85D182C6939A5925",1) -> =DISPIMG("ID_CE4EEFB2A38D48FC85D182C6939A5925",1)
A42: 2 | B42: 大字 | C42: 30*15 | D42: 2 | E42: 个 | H42: 材料：20mm亚克力 工艺：激光数控艺术雕刻、手工打磨、补灰 漆面：满喷底漆（二遍）+专业漆房烤漆精喷（三遍）
A43: 3 | B43: 小字 | C43: 6*6 | D43: 6 | E43: 个 | H43: 材料：10mm亚克力 工艺：激光数控艺术雕刻、手工打磨、补灰 漆面：满喷底漆（二遍）+专业漆房烤漆精喷（三遍）
A44: 4 | B44: 拼音 | C44: 5*5 | D44: 8 | E44: 个 | H44: 材料：5mm亚克力 工艺：激光数控艺术雕刻、手工打磨、补灰 漆面：满喷底漆（二遍）+专业漆房烤漆精喷（三遍）
A45: 5 | B45: 线条 | C45: 50*50 | D45: 1 | E45: 组 | H45: 材料：20mmUVS艺术雕刻板 工艺：激光数控艺术雕刻、手工打磨、补灰 漆面：满喷底漆（二遍）+专业漆房烤漆精喷（三遍）
A46: 6 | B46: 金色底板 | C46: 34*23 13*23 | D46: 4 | E46: 组 | H46: 材料：10mmUVS艺术雕刻板 工艺：激光数控艺术雕刻、手工打磨、补灰、UV 漆面：满喷底漆（二遍）+专业漆房烤漆精喷（三遍）
A47: 7 | B47: 照片 | C47: 34*23 42*23 | D47: 9 | E47: 组 | H47: 材料：5mm亚克力 工艺：5mm亚克力背喷UV
A48: 8 | B48: 留言板 | C48: 34*50 | D48: 1 | E48: 块 | H48: 毛毡板
A49: 9 | B49: 联络站 | C49: 52*50 | D49: =0.52*0.5 -> 0.26 | E49: m2 | H49: 材料：10mmUVS艺术雕刻板 工艺：激光数控艺术雕刻、手工打磨、补灰、UV 漆面：满喷底漆（二遍）+专业漆房烤漆精喷（三遍）
A50: 10 | B50: 小计 | G50: =SUM(G41:G49) -> 0
A51: 水吧台吊牌
A52: 1 | B52: 主题字 | C52: 22*22 | D52: 4 | E52: 个 | H52: 材料：20mm亚克力 工艺：激光数控艺术雕刻、手工打磨、补灰 漆面：满喷底漆（二遍）+专业漆房烤漆精喷（三遍）
A53: 2 | B53: 文字块 | C53: 9*35 | D53: 6 | E53: 组 | H53: 材料：10mm亚克力 工艺：10mm亚克力背喷UV
A54: 3 | B54: 亚克力板 | C54: 122*30 | D54: 1 | E54: 块 | H54: 材料：10mm亚克力
A55: 4 | B55: 小计 | G55: =SUM(G52:G54) -> 0
A56: 阅读氛围语
A57: 1 | B57: 主题字 | C57: 15*15 | D57: 14 | E57: 个 | H57: 材料：20mm亚克力 工艺：激光数控艺术雕刻、手工打磨、补灰 漆面：满喷底漆（二遍）+专业漆房烤漆精喷（三遍）
A58: 2 | B58: 线条1 | C58: 85*62 | D58: 1 | E58: 组 | H58: 材料：10mmUVS艺术雕刻板 工艺：激光数控艺术雕刻、手工打磨、补灰 漆面：满喷底漆（二遍）+专业漆房烤漆精喷（三遍）
A59: 3 | B59: 线条2 | C59: 61*2 | D59: 2 | E59: 组 | H59: 材料：10mmUVS艺术雕刻板 工艺：激光数控艺术雕刻、手工打磨、补灰 漆面：满喷底漆（二遍）+专业漆房烤漆精喷（三遍）
A60: 4 | B60: 星星 | C60: 15*24 8*13 | D60: 4 | E60: 组 | H60: 材料：10mmUVS艺术雕刻板 工艺：激光数控艺术雕刻、手工打磨、补灰 漆面：满喷底漆（二遍）+专业漆房烤漆精喷（三遍）
A61: 5 | B61: 小计 | G61: =SUM(G57:G60) -> 0
A62: 工会组织架构
A63: 1 | B63: 底板 | C63: 200*100 | D63: 1 | E63: 块 | H63: 材料：20mmUVS艺术雕刻板 工艺：激光数控艺术雕刻、手工打磨、补灰、UV 漆面：满喷底漆（二遍）+专业漆房烤漆精喷（三遍）
A64: 2 | B64: 文字块1 | C64: 200*12 | D64: 1 | E64: 块 | H64: 材料：10mmUVS艺术雕刻板 工艺：激光数控艺术雕刻、手工打磨、补灰、UV 漆面：满喷底漆（二遍）+专业漆房烤漆精喷（三遍）
A65: 3 | B65: 文字块2 | C65: 18*4 11*5 | D65: 19 | E65: 块 | H65: 材料：5mmUVS艺术雕刻板 工艺：激光数控艺术雕刻、手工打磨、补灰、UV 漆面：满喷底漆（二遍）+专业漆房烤漆精喷（三遍）
A66: 4 | B66: 亚克力盒子 | C66: 21*29.7 | D66: 4 | E66: 个 | H66: 材料：3mm亚克力盒子+相纸
A67: 5 | B67: 制度水牌 | C67: 50*130 | D67: 1 | E67: 组 | H67: 材料：1.5mm镀锌板+精装文本 工艺：激光数控艺术雕刻、手工打磨、补灰、丝印 漆面：满喷底漆（二遍）+专业漆房烤漆精喷（三遍）
A68: 6 | B68: 职工书屋 | C68: 14*14 | D68: 5 | E68: 个 | H68: 材料：20mm亚克力 工艺：激光数控艺术雕刻、手工打磨、补灰 漆面：满喷底漆（二遍）+专业漆房烤漆精喷（三遍）
A69: 7 | B69: 小计 | G69: =SUM(G63:G68) -> 0
H71: 备注
